bitfinex-derivatives/quotes_BTCF0:USTF0_20250517
["timestamp","ask_amount","ask_price","bid_price","bid_amount"]
[1747488610483,0.0337,102970.0,102960.0,1.35189896]
[1747488610687,0.0662,102970.0,102960.0,1.35189896]
[1747488610895,0.0662,102970.0,102960.0,1.38439896]
[1747488612494,0.06021301,102990.0,102960.0,1.23875686]
[1747488612694,0.12431301,102990.0,102980.0,0.75100166]
[1747488612900,0.06021301,102990.0,102980.0,0.96472166]
[1747488613198,0.06021301,102990.0,102980.0,1.11049423]
[1747488613389,0.09181301,102990.0,102980.0,1.11049423]
[1747488613793,0.0316,102990.0,102980.0,1.11049423]
[1747488614001,0.0346,102990.0,102980.0,1.11049423]
[1747488615901,0.0662,102990.0,102980.0,1.11049423]
[1747488616497,0.0662,102990.0,102980.0,1.0124668]
[1747488616704,0.0662,102990.0,102980.0,1.11049423]
[1747488620902,0.0981,102990.0,102980.0,1.14349423]
[1747488626615,0.0981,102990.0,102980.0,0.92977423]
[1747488626818,0.0981,102990.0,102980.0,1.18026112]
[1747488627017,0.0981,102990.0,102980.0,0.86871369]
[1747488627217,0.0981,102990.0,102980.0,1.21378112]
[1747488627916,0.0981,102990.0,102980.0,1.2255468]
[1747488629321,0.15831301,102990.0,102980.0,1.2255468]
[1747488631020,0.15831301,102990.0,102980.0,1.12751937]
[1747488631317,0.15831301,102990.0,102980.0,1.2255468]
[1747488632121,0.15831301,102990.0,102980.0,1.00030112]
[1747488632322,0.15831301,102990.0,102980.0,1.21374112]
[1747488634923,0.15831301,102990.0,102980.0,1.22582199]
[1747488635923,0.15831301,102990.0,102980.0,1.21374112]
[1747488637323,0.25634044,102990.0,102980.0,1.08263369]
[1747488637918,0.15831301,102990.0,102980.0,0.65571369]
[1747488638117,0.15831301,102990.0,102980.0,0.75374112]
[1747488638418,0.35244111,102990.0,102980.0,0.75374112]
[1747488638620,0.35244111,102990.0,102980.0,0.78634112]
[1747488638819,0.15831301,102990.0,102980.0,1.21326112]
[1747488639226,0.35244101,102990.0,102980.0,1.21326112]
[1747488640332,0.44334185,102990.0,102980.0,1.21326112]
[1747488641135,0.44334185,102990.0,102980.0,0.85246112]
[1747488641332,0.24921385,102990.0,102980.0,1.21326112]
[1747488642436,0.44334195,102990.0,102980.0,1.17629423]
[1747488642926,0.44334195,102990.0,102980.0,1.17625423]
[1747488643126,0.38312894,102990.0,102980.0,1.22163248]
[1747488646436,0.38312894,102990.0,102980.0,1.22159248]
[1747488646733,0.38312894,102990.0,102980.0,0.79475248]
[1747488646943,0.84195637,102990.0,102980.0,0.23952505]
[1747488647439,0.84195637,102990.0,102980.0,0.32055766]
[1747488649440,0.87225666,102990.0,102980.0,0.27517941]
[1747488652541,0.87225666,102990.0,102980.0,0.29296042]
[1747488654542,0.77422923,102990.0,102980.0,0.29296042]
[1747488654844,0.87225666,102990.0,102980.0,0.29296042]
[1747488658847,0.75105553,102990.0,102980.0,0.29296042]
[1747488661550,0.87225666,102990.0,102980.0,0.29296042]
[1747488662551,0.87225666,102990.0,102980.0,0.23126042]
[1747488664252,1.05225666,102990.0,102980.0,0.23126042]
[1747488664745,1.05225666,102990.0,102980.0,0.26186042]
[1747488664949,0.69145666,102990.0,102980.0,0.26186042]
[1747488665254,1.05225666,102990.0,102980.0,0.26186042]
[1747488666156,0.87225666,102990.0,102980.0,0.26186042]
[1747488668350,0.87225666,102990.0,102980.0,0.29366042]
[1747488677660,0.51145666,102990.0,102980.0,0.29366042]
[1747488677864,0.87225666,102990.0,102980.0,0.29366042]
[1747488678057,0.77422923,102990.0,102980.0,0.29366042]
[1747488678257,0.87225666,102990.0,102980.0,0.29366042]
[1747488681263,0.87225666,102990.0,102980.0,0.32416042]
[1747488681660,0.41342923,102990.0,102980.0,0.42218785]
[1747488681852,0.34992923,102990.0,102980.0,0.78298785]
[1747488682053,0.34992923,102990.0,102980.0,0.96298785]
[1747488682258,0.15580113,102990.0,102980.0,0.96298785]
[1747488682463,0.12420113,102990.0,102980.0,1.38874785]
[1747488682665,0.31832913,102990.0,102980.0,1.38874785]
[1747488684866,0.227728,102990.0,102980.0,1.38874785]
[1747488685366,0.0336,102990.0,102980.0,1.38874785]
[1747488685560,0.003,102990.0,102980.0,1.38874785]
[1747488686370,0.1971281,102990.0,102980.0,1.38874785]
[1747488687767,0.2303281,102990.0,102980.0,1.38874785]
[1747488687971,0.2303281,102990.0,102980.0,1.40116684]
[1747488688270,0.3213057,102990.0,102980.0,1.40116684]
[1747488688678,0.3213057,102990.0,102980.0,1.18828684]
[1747488688868,0.3213057,102990.0,102980.0,0.97540684]
[1747488689078,0.3213057,102990.0,102980.0,1.40108684]
[1747488691567,0.41933313,102990.0,102980.0,1.09025941]
[1747488691765,0.48323313,102990.0,102980.0,0.51657941]
[1747488692059,0.84403313,102990.0,102980.0,0.51657941]
[1747488692265,0.84403313,102990.0,102980.0,0.33657941]
[1747488692661,0.84403313,102990.0,102980.0,0.30607941]
[1747488693871,0.84403313,102990.0,102980.0,0.1941468]
[1747488694067,1.02403313,102990.0,102980.0,0.1941468]
[1747488694268,1.02403313,102990.0,102980.0,0.2254468]
[1747488694969,1.05425666,102990.0,102980.0,0.2254468]
[1747488696178,1.05425666,102990.0,102980.0,0.1941468]
[1747488697679,0.93305553,102990.0,102980.0,0.1941468]
[1747488699074,0.1941469,102980.0,102970.0,0.56694446]
[1747488699279,0.1941469,102980.0,102970.0,0.09491086]
[1747488699280,0.84630176,102980.0,102970.0,0.09491086]
[1747488699685,0.84630176,102980.0,102970.0,0.04537825]
[1747488700274,0.1941657,102970.0,102960.0,0.91114001]
[1747488700480,0.74859313,102970.0,102960.0,0.37199451]
[1747488700779,0.74859313,102970.0,102960.0,0.40519451]
[1747488701878,0.6515657,102970.0,102960.0,0.40819451]
[1747488702081,0.6515657,102970.0,102960.0,0.44089451]
[1747488702870,0.74959313,102970.0,102960.0,0.44289451]
[1747488703083,0.74959313,102970.0,102960.0,0.41019451]
[1747488703267,0.84044031,102970.0,102960.0,0.41019451]
[1747488705685,0.84044031,102970.0,102960.0,0.39774658]
[1747488707174,0.74241288,102970.0,102960.0,0.39774658]
[1747488707379,0.84044031,102970.0,102960.0,0.39774658]
[1747488709885,0.84044031,102970.0,102960.0,0.3606619]
[1747488710188,0.74241288,102970.0,102960.0,0.45868933]
[1747488710486,0.74241288,102970.0,102960.0,0.48988933]
[1747488710690,0.38161288,102970.0,102960.0,0.48988933]
[1747488710879,0.38161288,102970.0,102960.0,0.3918619]
[1747488714280,0.74241288,102970.0,102960.0,0.3918619]
[1747488715086,0.38161288,102970.0,102960.0,0.3918619]
[1747488715289,0.74241288,102970.0,102960.0,0.3918619]
[1747488715785,0.38161288,102970.0,102960.0,0.3918619]
[1747488716488,0.44212112,102970.0,102960.0,0.3918619]
[1747488716690,0.37952112,102970.0,102960.0,0.48988933]
[1747488717188,0.37952112,102970.0,102960.0,0.66988933]
[1747488717490,0.37952112,102970.0,102960.0,0.5718619]
[1747488717677,0.44192112,102970.0,102960.0,0.5718619]
[1747488718085,0.44192112,102970.0,102960.0,0.3918619]
[1747488718284,0.90074855,102970.0,102960.0,0.3433164]
[1747488718692,0.89974855,102970.0,102960.0,0.3403164]
[1747488718992,0.90074855,102970.0,102960.0,0.291773]
[1747488719389,0.84024031,102970.0,102960.0,0.291773]
[1747488719694,0.84024031,102970.0,102960.0,0.13468468]
[1747488719993,0.84024031,102970.0,102960.0,0.10348468]
[1747488720200,0.84024031,102970.0,102960.0,0.10148468]
[1747488720385,0.84224031,102970.0,102960.0,0.10148468]
[1747488720985,0.84224031,102970.0,102960.0,0.06828468]
[1747488721994,0.85357443,102970.0,102960.0,0.06828468]
[1747488722595,0.76272725,102970.0,102960.0,0.06828468]
[1747488723489,0.76272725,102970.0,102960.0,0.26246928]
[1747488724091,0.76272725,102970.0,102960.0,0.09838468]
[1747488724301,0.76272725,102970.0,102960.0,0.29256928]
[1747488724597,0.76272725,102970.0,102960.0,0.09838468]
[1747488725096,0.76272725,102970.0,102960.0,0.29256918]
[1747488729000,0.88392838,102970.0,102960.0,0.29256918]
[1747488729795,0.88392838,102970.0,102960.0,0.09838468]
[1747488730000,0.88392838,102970.0,102960.0,0.06828468]
[1747488730195,0.88392838,102970.0,102960.0,0.03708468]
[1747488730903,0.98195581,102970.0,102960.0,0.03708468]
[1747488731197,1.53451581,102970.0,102960.0,0.03708468]
[1747488731501,1.51043468,102970.0,102960.0,0.03708468]
[1747488732192,1.69043468,102970.0,102960.0,0.03708468]
[1747488732789,1.94043468,102970.0,102960.0,0.03708468]
[1747488733288,1.72787468,102970.0,102960.0,8e-08]
[1747488733495,1.94043468,102970.0,102960.0,8e-08]
[1747488733884,0.0485475,102960.0,102940.0,0.04537825]
[1747488734089,1.35703806,102950.0,102940.0,0.04537825]
[1747488734294,1.76003806,102950.0,102940.0,0.04537825]
[1747488734697,1.46201063,102950.0,102940.0,0.04537825]
[1747488735084,0.1942221,102940.0,102930.0,0.12513086]
[1747488735285,0.84477696,102940.0,102930.0,0.12513086]
[1747488735589,0.84477696,102940.0,102930.0,0.11308321]
[1747488736783,0.84777696,102940.0,102930.0,0.11408321]
[1747488737216,0.84777696,102940.0,102930.0,0.05048321]
[1747488737412,0.1942407,102930.0,102920.0,0.06153086]
[1747488737600,0.71776813,102930.0,102920.0,0.06153086]
[1747488737897,0.81579556,102930.0,102920.0,0.06489443]
[1747488738100,1.34579556,102930.0,102920.0,0.06489443]
[1747488738299,0.99579556,102930.0,102920.0,0.06489443]
[1747488738501,1.08579556,102930.0,102920.0,0.06489443]
[1747488738699,0.98776813,102930.0,102920.0,0.06489443]
[1747488738900,1.01059775,102930.0,102920.0,0.06489443]
[1747488739098,1.10862518,102930.0,102920.0,0.06489443]
[1747488739400,1.01159775,102930.0,102920.0,0.06489443]
[1747488739599,1.10962518,102930.0,102920.0,0.09599443]
[1747488739801,1.25278518,102930.0,102920.0,0.09599443]
[1747488739998,1.01962518,102930.0,102920.0,0.09599443]
[1747488740304,0.84062518,102930.0,102920.0,0.12959443]
[1747488740801,0.84062518,102930.0,102920.0,0.0647]
[1747488741098,0.77379775,102930.0,102920.0,0.0647]
[1747488741298,0.77379775,102930.0,102920.0,0.0972]
[1747488741693,0.87182518,102930.0,102920.0,0.0972]
[1747488741887,0.87182518,102930.0,102920.0,0.0647]
[1747488742094,0.84141553,102930.0,102920.0,0.0647]
[1747488742900,0.7433881,102930.0,102920.0,0.0647]
[1747488743206,0.84141553,102930.0,102920.0,0.0647]
[1747488746398,0.84141553,102930.0,102920.0,0.0978]
[1747488749100,0.7433881,102930.0,102920.0,0.0978]
[1747488749304,0.84141553,102930.0,102920.0,0.0978]
[1747488749505,0.7433881,102930.0,102920.0,0.0978]
[1747488749700,0.7433881,102930.0,102920.0,0.10116548]
[1747488749906,0.84141553,102930.0,102920.0,0.10116548]
[1747488750509,0.84141553,102930.0,102920.0,0.0978]
[1747488753108,0.7433881,102930.0,102920.0,0.0978]
[1747488753309,0.84141553,102930.0,102920.0,0.0978]
[1747488754515,0.7433881,102930.0,102920.0,0.0978]
[1747488754712,0.84141553,102930.0,102920.0,0.0978]
[1747488755412,0.7433881,102930.0,102920.0,0.0978]
[1747488755616,0.84141553,102930.0,102920.0,0.0978]
[1747488756815,0.7433881,102930.0,102920.0,0.0978]
[1747488757116,0.84141553,102930.0,102920.0,0.0978]
[1747488757320,0.7433881,102930.0,102920.0,0.0978]
[1747488757818,0.2866881,102930.0,102920.0,0.39008683]
[1747488758116,0.2866881,102930.0,102920.0,1.03124683]
[1747488758303,0.2866879,102930.0,102920.0,1.49007426]
[1747488758502,0.25662158,102930.0,102920.0,1.49007426]
[1747488758713,0.25662158,102930.0,102920.0,1.39204683]
[1747488761314,0.25662158,102930.0,102920.0,1.44381677]
[1747488761515,0.25662158,102930.0,102920.0,1.79421677]
[1747488762923,0.25662158,102930.0,102920.0,1.6444194]
[1747488763224,0.25662158,102930.0,102920.0,1.79421677]
[1747488763422,0.25662158,102930.0,102920.0,1.79365677]
[1747488764709,0.34706898,102930.0,102920.0,1.79365677]
[1747488765622,0.34706898,102930.0,102920.0,1.43285677]
[1747488765824,0.34706898,102930.0,102920.0,1.79365677]
[1747488768527,0.34706888,102930.0,102920.0,1.79365677]
[1747488768825,0.34706898,102930.0,102920.0,1.79365677]
[1747488770525,0.15282848,102930.0,102920.0,1.89081677]
[1747488771926,0.15282848,102930.0,102920.0,1.7410194]
[1747488771927,0.34706898,102930.0,102920.0,1.7410194]
[1747488772128,0.0473668,102930.0,102920.0,1.93619502]
[1747488772320,0.2416073,102930.0,102920.0,1.47559502]
[1747488775729,0.2416073,102930.0,102920.0,1.43021677]
[1747488776231,0.2730073,102930.0,102920.0,1.43021677]
[1747488776625,0.2730073,102930.0,102920.0,1.33305677]
[1747488777437,0.2730073,102930.0,102920.0,1.56497677]
[1747488780830,0.2730073,102930.0,102920.0,0.8224594]
[1747488781035,0.3341073,102930.0,102920.0,1.0206394]
[1747488781233,0.3341073,102930.0,102920.0,1.171283]
[1747488781735,0.39448838,102930.0,102920.0,0.707683]
[1747488782235,0.39448838,102930.0,102920.0,1.171123]
[1747488782435,0.39448838,102930.0,102920.0,1.531923]
[1747488782642,0.39448838,102930.0,102920.0,1.181523]
[1747488783135,0.39448838,102930.0,102920.0,1.214023]
[1747488784941,0.39448838,102930.0,102920.0,1.1156994]
[1747488785240,0.39448838,102930.0,102920.0,1.214023]
[1747488785429,0.39448838,102930.0,102920.0,0.8521594]
[1747488785632,0.39448838,102930.0,102920.0,0.950483]
[1747488785830,0.39448838,102930.0,102920.0,0.718083]
[1747488786035,0.39448838,102930.0,102920.0,1.182443]
[1747488786857,0.49281198,102930.0,102920.0,0.6594994]
[1747488787157,0.49281198,102930.0,102920.0,0.001]
[1747488787351,0.49281198,102930.0,102920.0,0.1952593]
[1747488787541,0.49281198,102930.0,102920.0,0.001]
[1747488788149,0.6575115,102930.0,102920.0,0.001]
[1747488788350,1.0183115,102930.0,102920.0,0.001]
[1747488789259,1.06986962,102930.0,102920.0,0.001]
[1747488789454,0.9199879,102930.0,102920.0,0.001]
[1747488789759,1.06986962,102930.0,102920.0,0.001]
[1747488791262,0.97942222,102930.0,102920.0,0.1952593]
[1747488791470,0.8295405,102930.0,102920.0,0.1952593]
[1747488792167,0.6495405,102930.0,102920.0,0.2585593]
[1747488792466,0.2887405,102930.0,102920.0,0.2585593]
[1747488792967,0.2887405,102930.0,102920.0,0.76924102]
[1747488793361,0.2887405,102930.0,102920.0,1.23540102]
[1747488793762,0.2887405,102930.0,102920.0,1.26740102]
[1747488794062,0.2887405,102930.0,102920.0,1.1175193]
[1747488795163,0.2887405,102930.0,102920.0,1.2975193]
[1747488796064,0.2887405,102930.0,102920.0,1.4775193]
[1747488796266,0.2887405,102930.0,102920.0,1.2975193]
[1747488798159,0.37950451,102930.0,102920.0,1.1175193]
[1747488800360,0.37950451,102930.0,102920.0,1.26740102]
[1747488800564,0.31840451,102930.0,102920.0,1.26740102]
[1747488801265,0.37892797,102930.0,102920.0,1.44740102]
[1747488804279,0.37892797,102930.0,102920.0,1.26740102]
[1747488805172,0.37892797,102930.0,102920.0,1.44740102]
[1747488808976,0.37892797,102930.0,102920.0,1.08660102]
[1747488809175,0.37892797,102930.0,102920.0,1.44740102]
[1747488809373,0.37892797,102930.0,102920.0,1.39583214]
[1747488809776,0.37892797,102930.0,102920.0,1.44526459]
[1747488810282,0.37892797,102930.0,102920.0,1.26526459]
[1747488811284,0.37892797,102930.0,102920.0,1.26202459]
[1747488811486,0.41142797,102930.0,102920.0,1.26202459]
[1747488813288,0.35090451,102930.0,102920.0,1.26202459]
[1747488813782,0.38420451,102930.0,102920.0,0.90119175]
[1747488814083,0.48251735,102930.0,102920.0,0.66879175]
[1747488814387,0.38420451,102930.0,102920.0,1.13207175]
[1747488815285,0.38420451,102930.0,102920.0,1.16447175]
[1747488817181,0.38420451,102930.0,102920.0,1.26278459]
[1747488818293,0.38420451,102930.0,102920.0,1.16447175]
[1747488820090,0.38420451,102930.0,102920.0,0.80367175]
[1747488820292,0.38420451,102930.0,102920.0,1.16447175]
[1747488824403,0.38420451,102930.0,102920.0,1.26278459]
[1747488825905,0.38420451,102930.0,102920.0,0.90198459]
[1747488826103,0.2934405,102930.0,102920.0,1.26278459]
[1747488826496,0.2934405,102930.0,102920.0,0.90198459]
[1747488826698,0.2934405,102930.0,102920.0,1.26278459]
[1747488829409,0.2276405,102930.0,102920.0,1.36109743]
[1747488829998,0.2276405,102930.0,102920.0,1.26278459]
[1747488830199,0.2276405,102930.0,102920.0,1.44278459]
[1747488831303,0.2589405,102930.0,102920.0,1.26278459]
[1747488831509,0.2902405,102930.0,102920.0,1.26278459]
[1747488831706,0.2902405,102930.0,102920.0,1.16447175]
[1747488831912,0.2902405,102930.0,102920.0,1.03210459]
[1747488832113,0.38124707,102930.0,102920.0,1.30528284]
[1747488832411,0.38124707,102930.0,102920.0,0.84488284]
[1747488832910,0.38124707,102930.0,102920.0,1.17009]
[1747488832911,0.47955991,102930.0,102920.0,1.17009]
[1747488833115,0.47955991,102930.0,102920.0,0.71417]
[1747488833414,0.47955991,102930.0,102920.0,1.10683]
[1747488833613,0.84035991,102930.0,102920.0,0.74599]
[1747488834214,0.84035991,102930.0,102920.0,0.77639]
[1747488834912,0.84035991,102930.0,102920.0,0.72695755]
[1747488835108,0.74935334,102930.0,102920.0,0.72695755]
[1747488835310,0.87037202,102930.0,102920.0,0.2256593]
[1747488835500,0.87037202,102930.0,102920.0,0.4232993]
[1747488835705,0.87037202,102930.0,102920.0,0.6507393]
[1747488836003,0.87037202,102930.0,102920.0,0.6506593]
[1747488837115,1.05037202,102930.0,102920.0,0.001]
[1747488838807,1.05037202,102930.0,102920.0,0.1952592]
[1747488839204,0.95205918,102930.0,102920.0,0.1952592]
[1747488839715,0.95205918,102930.0,102920.0,0.34511563]
[1747488839919,0.95205918,102930.0,102920.0,0.2569592]
[1747488840102,0.77205918,102930.0,102920.0,0.2569592]
[1747488841312,0.41125918,102930.0,102920.0,0.2569592]
[1747488841514,0.41125918,102930.0,102920.0,0.79801563]
[1747488841810,0.15441868,102930.0,102920.0,0.79801563]
[1747488842205,0.15441868,102930.0,102920.0,0.97801563]
[1747488842609,0.34865908,102930.0,102920.0,0.97801563]
[1747488843119,0.12301868,102930.0,102920.0,1.07517563]
[1747488843419,0.12301868,102930.0,102920.0,1.12470399]
[1747488844421,0.04744651,102930.0,102920.0,1.23045319]
[1747488845521,0.04744651,102930.0,102920.0,1.58085319]
[1747488846919,0.04744651,102930.0,102920.0,1.52048224]
[1747488847121,0.24168691,102930.0,102920.0,1.07292224]
[1747488847315,0.27188691,102930.0,102920.0,0.92306581]
[1747488847524,0.27188691,102930.0,102920.0,1.52836224]
[1747488847719,0.33498691,102930.0,102920.0,1.52836224]
[1747488848123,0.33498691,102930.0,102920.0,1.34832224]
[1747488848824,0.33498691,102930.0,102920.0,0.74306581]
[1747488849022,0.33498691,102930.0,102920.0,1.19886581]
[1747488850124,0.35013575,102930.0,102920.0,1.19886581]
[1747488850316,0.35013575,102930.0,102920.0,1.34872224]
[1747488852824,0.35013575,102930.0,102920.0,1.30334399]
[1747488854315,0.35013575,102930.0,102920.0,0.94254399]
[1747488854516,0.35013575,102930.0,102920.0,1.07562399]
[1747488854815,0.35013575,102930.0,102920.0,1.30262399]
[1747488855026,0.39554987,102930.0,102920.0,1.30262399]
[1747488856119,0.39554987,102930.0,102920.0,1.15276756]
[1747488856318,0.39554987,102930.0,102920.0,1.30262399]
[1747488857728,0.39554987,102930.0,102920.0,1.15276756]
[1747488857920,0.39554987,102930.0,102920.0,1.30262399]
[1747488859018,0.13820947,102930.0,102920.0,1.30262399]
[1747488859219,0.13820947,102930.0,102920.0,1.48262399]
[1747488859418,0.10800947,102930.0,102920.0,1.48262399]
[1747488860527,0.10800947,102930.0,102920.0,1.83302399]
[1747488865831,0.10800947,102930.0,102920.0,1.87840224]
[1747488866023,0.14100947,102930.0,102920.0,1.87840224]
[1747488866727,0.14100947,102930.0,102920.0,1.65140224]
[1747488866938,0.14100947,102930.0,102920.0,1.87636224]
[1747488867236,0.14100947,102930.0,102920.0,1.47006721]
[1747488867426,0.14100947,102930.0,102920.0,1.92138721]
[1747488868129,0.035,102930.0,102920.0,1.87600896]
[1747488870236,0.035,102930.0,102920.0,1.8264806]
[1747488870937,0.035,102930.0,102920.0,1.8259206]
[1747488871139,0.1002,102930.0,102920.0,1.6459206]
[1747488871738,0.1002,102930.0,102920.0,1.6458406]
[1747488872434,0.1002,102930.0,102920.0,1.4492392]
[1747488872631,0.1002,102930.0,102920.0,1.5475399]
[1747488873132,0.1002,102930.0,102920.0,1.6456806]
[1747488873330,0.1002,102930.0,102920.0,1.1951606]
[1747488873530,0.1002,102930.0,102920.0,1.6455606]
[1747488874649,0.2944404,102930.0,102920.0,1.5472599]
[1747488875539,0.2944404,102930.0,102920.0,1.1968599]
[1747488875852,0.2944404,102930.0,102920.0,0.8745592]
[1747488876144,0.2944404,102930.0,102920.0,1.1965399]
[1747488877142,0.2944404,102930.0,102920.0,1.0680392]
[1747488877339,0.2944404,102930.0,102920.0,0.7160599]
[1747488877547,0.2944404,102930.0,102920.0,1.1664199]
[1747488880649,0.2944404,102930.0,102920.0,1.1983199]
[1747488880834,0.2944404,102930.0,102920.0,1.2963406]
[1747488881038,0.2944404,102930.0,102920.0,0.8462606]
[1747488881245,0.2944404,102930.0,102920.0,1.2963406]
[1747488881443,0.002,102930.0,102920.0,1.2962606]
[1747488881643,0.002,102930.0,102920.0,1.0996592]
[1747488881845,0.12450614,102930.0,102920.0,1.2962606]
[1747488882053,0.12450614,102930.0,102920.0,1.34179325]
[1747488882241,0.12450614,102930.0,102920.0,1.14519185]
[1747488882446,0.12450614,102930.0,102920.0,1.34179325]
[1747488882759,0.12450614,102930.0,102920.0,1.14519185]
[1747488882943,0.15600614,102930.0,102920.0,1.24349255]
[1747488883249,0.15600614,102930.0,102920.0,1.34179325]
[1747488883456,0.21667398,102930.0,102920.0,1.34179325]
[1747488884362,0.24927398,102930.0,102920.0,1.34179325]
[1747488884567,0.24927398,102930.0,102920.0,1.24349255]
[1747488885064,0.15367398,102930.0,102920.0,1.52179325]
[1747488885452,0.18617398,102930.0,102920.0,1.57133366]
[1747488886468,0.18617398,102930.0,102920.0,1.63204386]
[1747488887670,0.18617398,102930.0,102920.0,1.78584246]
[1747488887867,0.18617398,102930.0,102920.0,1.98244386]
[1747488888455,0.09516784,102930.0,102920.0,1.98244386]
[1747488888868,0.09516784,102930.0,102920.0,2.06050949]
[1747488890866,0.09516784,102930.0,102920.0,1.93290345]
[1747488892168,0.09516784,102930.0,102920.0,1.73630205]
[1747488892364,0.09516784,102930.0,102920.0,1.93290345]
[1747488892670,0.28940824,102930.0,102920.0,1.92974345]
[1747488893272,0.28940824,102930.0,102920.0,1.74974345]
[1747488893676,0.28940824,102930.0,102920.0,1.81166896]
[1747488893972,0.28940824,102930.0,102920.0,1.61506756]
[1747488894170,0.28940824,102930.0,102920.0,1.71336826]
[1747488894364,0.35420824,102930.0,102920.0,1.26652826]
[1747488894564,0.35420824,102930.0,102920.0,1.71440826]
[1747488894966,0.35420824,102930.0,102920.0,1.23462826]
[1747488895165,0.53420824,102930.0,102920.0,1.13632756]
[1747488895363,0.53420824,102930.0,102920.0,1.16166756]
[1747488895571,0.53420824,102930.0,102920.0,1.19406756]
[1747488896470,0.63250894,102930.0,102920.0,0.93746756]
[1747488896672,0.63250894,102930.0,102920.0,1.16174756]
[1747488896975,0.66284724,102930.0,102920.0,0.83122471]
[1747488897276,0.66284724,102930.0,102920.0,1.05538471]
[1747488897579,0.66284724,102930.0,102920.0,0.83122471]
[1747488897773,0.66284724,102930.0,102920.0,0.60758471]
[1747488897979,0.66284724,102930.0,102920.0,0.59518297]
[1747488898469,0.76000724,102930.0,102920.0,0.40092377]
[1747488898675,1.12080724,102930.0,102920.0,0.40092377]
[1747488898865,1.12080724,102930.0,102920.0,0.59518297]
[1747488899576,1.02364724,102930.0,102920.0,0.24478297]
[1747488900468,1.05398262,102930.0,102920.0,0.24478297]
[1747488900969,0.95568192,102930.0,102920.0,0.24478297]
[1747488901177,1.05398262,102930.0,102920.0,0.24478297]
[1747488901576,0.95568192,102930.0,102920.0,0.34308367]
[1747488901778,0.59488192,102930.0,102920.0,0.24478297]
[1747488901965,0.59488192,102930.0,102920.0,0.27638297]
[1747488902165,0.59488192,102930.0,102920.0,0.30808297]
[1747488902477,0.59488192,102930.0,102920.0,0.76718367]
[1747488903068,0.41488192,102930.0,102920.0,0.79998367]
[1747488903370,0.22064152,102930.0,102920.0,0.85150728]
[1747488903570,0.2935403,102930.0,102920.0,0.85150728]
[1747488903764,0.2935403,102930.0,102920.0,0.83909607]
[1747488905970,0.2935403,102930.0,102920.0,0.91859176]
[1747488906468,0.44493203,102930.0,102920.0,0.91859176]
[1747488906777,0.44493203,102930.0,102920.0,0.93100297]
[1747488907480,0.44493203,102930.0,102920.0,0.57020297]
[1747488907673,0.44493203,102930.0,102920.0,0.93100297]
[1747488907975,0.44493203,102930.0,102920.0,1.08082728]
[1747488911069,0.21819173,102930.0,102920.0,1.08082728]
[1747488911274,0.38013193,102930.0,102920.0,1.08082728]
[1747488913381,0.18589173,102930.0,102920.0,1.08082728]
[1747488914283,0.15339173,102930.0,102920.0,1.26082728]
[1747488914684,0.18419173,102930.0,102920.0,1.26082728]
[1747488915583,0.18419173,102930.0,102920.0,1.3390083]
[1747488916786,0.1387706,102930.0,102920.0,1.3390083]
[1747488917492,0.1387706,102930.0,102920.0,1.6894083]
[1747488917792,0.1079706,102930.0,102920.0,1.6894083]
[1747488919382,0.1400706,102930.0,102920.0,1.6894083]
[1747488920387,0.1400706,102930.0,102920.0,1.73494095]
[1747488920987,0.1400706,102930.0,102920.0,1.58511664]
[1747488921283,0.1400706,102930.0,102920.0,1.73494095]
[1747488921484,0.1400706,102930.0,102920.0,1.35579664]
[1747488921684,0.1400706,102930.0,102920.0,1.73326095]
[1747488921886,0.1400706,102930.0,102920.0,1.96098095]
[1747488922190,0.1400706,102930.0,102920.0,1.78098095]
[1747488923187,0.1400706,102930.0,102920.0,1.63115664]
[1747488923490,0.1400706,102930.0,102920.0,1.43058095]
[1747488925396,0.1400706,102930.0,102920.0,1.47737462]
[1747488925581,0.1400706,102930.0,102920.0,1.47653462]
[1747488926287,0.1400706,102930.0,102920.0,0.82539664]
[1747488926591,0.1400706,102930.0,102920.0,1.47633462]
[1747488927591,0.1400706,102930.0,102920.0,1.83713462]
[1747488930190,0.1400706,102930.0,102920.0,1.64051664]
[1747488930394,0.1400706,102930.0,102920.0,1.83713462]
[1747488930892,0.2012706,102930.0,102920.0,1.83713462]
[1747488932697,0.2012706,102930.0,102920.0,1.64051664]
[1747488932884,0.2012706,102930.0,102920.0,1.83713462]
[1747488934195,0.2012706,102930.0,102920.0,1.41379664]
[1747488934385,0.2012706,102930.0,102920.0,1.73814563]
[1747488936086,0.2012706,102930.0,102920.0,1.81983664]
[1747488936388,0.29210564,102930.0,102920.0,2.01645462]
[1747488936691,0.29210564,102930.0,102920.0,1.29485462]
[1747488936895,0.29210564,102930.0,102920.0,2.01645462]
[1747488938095,0.29210564,102930.0,102920.0,1.83645462]
[1747488938295,0.29210564,102930.0,102920.0,1.77452911]
[1747488938887,0.29210564,102930.0,102920.0,1.83523931]
[1747488943203,0.29210564,102930.0,102920.0,1.63862133]
[1747488943390,0.29210564,102930.0,102920.0,1.90954992]
[1747488944700,0.26200564,102930.0,102920.0,1.90954992]
[1747488945504,0.21659173,102930.0,102920.0,1.90954992]
[1747488949507,0.21659173,102930.0,102920.0,1.18794992]
[1747488949805,0.21659173,102930.0,102920.0,1.90954992]
[1747488950504,0.21659173,102930.0,102920.0,1.18794992]
[1747488950704,0.21659173,102930.0,102920.0,1.90954992]
[1747488952911,0.21659173,102930.0,102920.0,1.68350992]
[1747488953101,0.24729173,102930.0,102920.0,1.80840093]
[1747488954312,0.24729173,102930.0,102920.0,1.90670992]
[1747488956412,0.24729173,102930.0,102920.0,1.80840093]
[1747488957606,0.24729173,102930.0,102920.0,1.73024573]
[1747488958010,0.24729173,102930.0,102920.0,1.82855472]
[1747488959110,0.24729173,102930.0,102920.0,1.10695472]
[1747488959312,0.24729173,102930.0,102920.0,1.82855472]
[1747488959613,0.24729173,102930.0,102920.0,1.73024573]
[1747488960113,0.24729173,102930.0,102920.0,1.00864573]
[1747488960312,0.24729173,102930.0,102920.0,1.73024573]
[1747488960503,0.24729173,102930.0,102920.0,1.00864573]
[1747488960702,0.24729173,102930.0,102920.0,1.73024573]
[1747488961310,0.24729173,102930.0,102920.0,1.74262165]
[1747488961708,0.24729173,102930.0,102920.0,1.51942165]
[1747488961914,0.24729173,102930.0,102920.0,1.74182165]
[1747488963111,0.24729173,102930.0,102920.0,1.02022165]
[1747488963312,0.24729173,102930.0,102920.0,1.74182165]
[1747488963915,0.24729173,102930.0,102920.0,1.64351266]
[1747488964116,0.24729173,102930.0,102920.0,1.74182165]
[1747488966616,0.24729173,102930.0,102920.0,1.80758246]
[1747488966806,0.24729173,102930.0,102920.0,1.70927347]
[1747488967005,0.24729173,102930.0,102920.0,1.58518246]
[1747488967206,0.44153203,102930.0,102920.0,1.64473347]
[1747488967408,0.44697419,102930.0,102920.0,1.05773347]
[1747488967710,0.54528318,102930.0,102920.0,0.66533347]
[1747488967915,0.44697419,102930.0,102920.0,0.88777347]
[1747488968216,0.44697419,102930.0,102920.0,0.88769347]
[1747488968418,0.44153203,102930.0,102920.0,0.88769347]